Workbook

Sheet Začať
B1: INFORMÁCIE O TEJTO ŠABLÓNE
B2: Pomocou tejto šablóny môžete vytvoriť rozpočet na kanálový marketing.
B3: Do jednotlivých tabuliek zadajte na každý mesiac očakávaný predaj a ďalšie podrobnosti.
B4: Automaticky sa vypočítajú súčty a aktualizujú krivky.
B5: Poznámka:
B6: V hárku ROZPOČET NA KANÁLOVÝ MARKETING sú v stĺpci A uvedené ďalšie pokyny. Tento text je zámerne skrytý. Ak chcete text odstrániť, vyberte stĺpec A a potom stlačte kláves DELETE. Ak chcete text zobraziť, vyberte stĺpec A a potom zmeňte farbu písma.
B7: Ak chcete získať ďalšie informácie o tabuľkách, v tabuľke stlačte kláves SHIFT a potom kláves F10, vyberte možnosť TABUĽKA a potom vyberte položku ALTERNATÍVNY TEXT.

Sheet Rozpočet na kanálový marketing
A1: V tomto hárku môžete vytvoriť rozpočet na kanálový marketing. V bunke napravo sa nachádza nadpis tohto hárka. V bunkách v tomto stĺpci nájdete užitočné pokyny. Začnite stlačením šípky nadol. V bunke napravo sa nachádza nadpis tohto hárka. | B1: ROZPOČET NA KANÁLOVÝ MARKETING
A2: V tomto riadku sa v bunkách C2 až O2 nachádzajú označenia Sadzba a Mesiac, v bunke Q2 sa nachádza označenie súčet. | C2: Sadzba | D2: Mesiac 1 | E2: Mesiac 2 | F2: Mesiac 3 | G2: Mesiac 4 | H2: Mesiac 5 | I2: Mesiac 6 | J2: Mesiac 7 | K2: Mesiac 8 | L2: Mesiac 9 | M2: Mesiac 10 | N2: Mesiac 11 | O2: Mesiac 12 | Q2: súčet
A3: V bunke napravo sa nachádza označenie Celkový očakávaný predaj. Do buniek D3 až O3 zadajte pre očakávaný predaj pre jednotlivé mesiace. V bunke Q3 sa automaticky vypočíta súčet. | B3: CELKOVÝ OČAKÁVANÝ PREDAJ (000) € | D3: 750 | E3: 200 | F3: 500 | G3: 1,500 | H3: 1,200 | I3: 1,500 | J3: 1,500 | K3: 1,800 | L3: 2,000 | M3: 2,000 | N3: 2,000 | O3: 2,000 | Q3: =SUM(D3:O3) -> 16,950
A4: Do tabuľky Personál začínajúcej v bunke napravo zadajte podrobnosti. Celková suma na personál sa každý mesiac automaticky vypočíta na konci tabuľky a celkový ročný Spolu v bunke Q9. V bunke S9 sa automaticky aktualizuje krivka. Ďalší pokyn sa nachádza v bunke A10. | B4: Položky tabuľky Personál | C4: Sadzba | D4: Mesiac 1 | E4: Mesiac 2 | F4: Mesiac 3 | G4: Mesiac 4 | H4: Mesiac 5 | I4: Mesiac 6 | J4: Mesiac 7 | K4: Mesiac 8 | L4: Mesiac 9 | M4: Mesiac 10 | N4: Mesiac 11 | O4: Mesiac 12
B5: PERSONÁL (% Z CELKOVÉHO PREDAJA) | D5: =D11+D33+D41+D48 -> 110% | E5: 110% | F5: 110% | G5: 110% | H5: 110% | I5: 110% | J5: 110% | K5: 110% | L5: 85% | M5: 85% | N5: 85% | O5: 85%
B6: Ľudské zdroje – nábor zamestnancov | C6: 5 | D6: =+$C$6 -> 5 | E6: 5 | F6: 5 | G6: 5 | H6: 5 | I6: 5 | J6: 5 | K6: 5 | L6: 5 | M6: 5 | N6: 5 | O6: 5
B7: Ľudské zdroje – náklady | D7: =$C$6*D6 -> 25.00 | E7: 25.00 | F7: 25.00 | G7: 25.00 | H7: 25.00 | I7: 25.00 | J7: 25.00 | K7: 25.00 | L7: 25.00 | M7: 25.00 | N7: 25.00 | O7: 25.00 | Q7: =SUM('Rozpočet na kanálový marketing'!$D7:$O7) -> 300.00
B8: Provízia | C8: 0.10% | D8: =D3*$C$8 -> 0.75 | E8: 0.20 | F8: 0.50 | G8: 1.50 | H8: 1.20 | I8: 1.50 | J8: 1.50 | K8: 1.80 | L8: 2.00 | M8: 2.00 | N8: 2.00 | O8: 2.00 | Q8: =SUM('Rozpočet na kanálový marketing'!$D8:$O8) -> 16.95
B9: Celková suma na personál (000) € | D9: =SUM(D7:D8) -> 25.75 | E9: =SUM(E7:E8) -> 25.20 | F9: 25.50 | G9: 26.50 | H9: 26.20 | I9: 26.50 | J9: 26.50 | K9: 26.80 | L9: 27.00 | M9: 27.00 | N9: 27.00 | O9: 27.00 | Q9: =SUM(Q7:Q8) -> 316.95
A10: Do tabuľky Priamy marketing začínajúcej v bunke napravo zadajte podrobnosti. Súčet výdavkov na telemarketing sa každý mesiac automaticky vypočíta na konci tabuľky a celkový ročný súčet v bunke Q17. V bunke S17 sa automaticky aktualizuje krivka. Ďalší pokyn sa nachádza v bunke A18. | B10: Položky tabuľky Priamy marketing | C10: Sadzba | D10: Mesiac 1 | E10: Mesiac 2 | F10: Mesiac 3 | G10: Mesiac 4 | H10: Mesiac 5 | I10: Mesiac 6 | J10: Mesiac 7 | K10: Mesiac 8 | L10: Mesiac 9 | M10: Mesiac 10 | N10: Mesiac 11 | O10: Mesiac 12
B11: PRIAMY MARKETING (% Z CELKOVÉHO PREDAJA) | D11: 100% | E11: 100% | F11: 75% | G11: 40% | H11: 33% | I11: 25% | J11: 20% | K11: 10% | L11: 5% | M11: 5% | N11: 5% | O11: 5%
B12: Telemarketing (% z priameho predaja) | D12: 100% | E12: 50% | F12: 50% | G12: 50% | H12: 50% | I12: 50% | J12: 50% | K12: 50% | L12: 50% | M12: 50% | N12: 50% | O12: 50%
B13: Ľudské zdroje – nábor zamestnancov | C13: 3 | D13: =$C$13*D12 -> 3 | E13: 1.5 | F13: 1.5 | G13: 1.5 | H13: 1.5 | I13: 1.5 | J13: 1.5 | K13: 1.5 | L13: 1.5 | M13: 1.5 | N13: 1.5 | O13: 1.5 | Q13: =SUM('Rozpočet na kanálový marketing'!$D13:$O13) -> 19.50
B14: Podpora infraštruktúry | D14: 25 | E14: 10 | F14: 25 | G14: 10 | H14: 25 | I14: 10 | J14: 25 | K14: 10 | L14: 25 | M14: 10 | N14: 25 | O14: 10 | Q14: =SUM('Rozpočet na kanálový marketing'!$D14:$O14) -> 210.00
B15: Provízia | C15: 0.10% | D15: =$C$15*D3*D11*D12 -> 0.75 | E15: 0.10 | F15: 0.19 | G15: 0.30 | H15: 0.20 | I15: 0.19 | J15: 0.15 | K15: 0.09 | L15: 0.05 | M15: 0.05 | N15: 0.05 | O15: 0.05 | Q15: =SUM('Rozpočet na kanálový marketing'!$D15:$O15) -> 2.16
B16: Školenie | D16: 25 | E16: 10 | F16: 25 | G16: 10 | H16: 25 | I16: 10 | J16: 25 | K16: 10 | L16: 25 | M16: 10 | N16: 25 | O16: 10 | Q16: =SUM('Rozpočet na kanálový marketing'!$D16:$O16) -> 210.00
B17: Celková suma na telemarketing (000) € | D17: =SUM(D13:D16) -> 53.75 | E17: =SUM(E13:E16) -> 21.60 | F17: =SUM(F13:F16) -> 51.69 | G17: 21.80 | H17: 51.70 | I17: 21.69 | J17: 51.65 | K17: 21.59 | L17: 51.55 | M17: 21.55 | N17: 51.55 | O17: 21.55 | Q17: =SUM(Q13:Q16) -> 441.66
A18: Do tabuľky Internetový marketing začínajúcej v bunke napravo zadajte podrobnosti. Celková suma na telemarketing sa každý mesiac automaticky vypočíta na konci tabuľky a celkový ročný súčet v bunke Q24. V bunke S24 sa automaticky aktualizuje krivka. Ďalší pokyn sa nachádza v bunke A25. | B18: Položky tabuľky Internetový marketing | C18: Sadzba | D18: Mesiac 1 | E18: Mesiac 2 | F18: Mesiac 3 | G18: Mesiac 4 | H18: Mesiac 5 | I18: Mesiac 6 | J18: Mesiac 7 | K18: Mesiac 8 | L18: Mesiac 9 | M18: Mesiac 10 | N18: Mesiac 11 | O18: Mesiac 12
B19: Internetový marketing (% z priameho predaja) | D19: 25% | E19: 25% | F19: 25% | G19: 25% | H19: 25% | I19: 25% | J19: 25% | K19: 25% | L19: 25% | M19: 25% | N19: 25% | O19: 25%
B20: Ľudské zdroje – nábor zamestnancov | C20: 1 | D20: =$C$20*D19 -> 0.25 | E20: 0.25 | F20: 0.25 | G20: 0.25 | H20: 0.25 | I20: 0.25 | J20: 0.25 | K20: 0.25 | L20: 0.25 | M20: 0.25 | N20: 0.25 | O20: 0.25 | Q20: =SUM('Rozpočet na kanálový marketing'!$D20:$O20) -> 3.00
B21: Vývoj webovej lokality (jednorazový náklad) | D21: 500 | Q21: =SUM('Rozpočet na kanálový marketing'!$D21:$O21) -> 500.00
B22: Hosťovanie | D22: 10 | E22: 10 | F22: 10 | G22: 10 | H22: 10 | I22: 10 | J22: 10 | K22: 10 | L22: 10 | M22: 10 | N22: 10 | O22: 10 | Q22: =SUM('Rozpočet na kanálový marketing'!$D22:$O22) -> 120.00
B23: Podpora a údržba | D23: 25 | N23: 25 | Q23: =SUM('Rozpočet na kanálový marketing'!$D23:$O23) -> 50.00
B24: Celková suma na internetový marketing (000) € | D24: =SUM(D20:D23) -> 535.25 | E24: =SUM(E20:E23) -> 10.25 | F24: 10.25 | G24: 10.25 | H24: 10.25 | I24: 10.25 | J24: 10.25 | K24: 10.25 | L24: 10.25 | M24: 10.25 | N24: 35.25 | O24: 10.25 | Q24: =SUM(Q20:Q23) -> 673.00
A25: Do tabuľky Priama pošta začínajúcej v bunke napravo zadajte podrobnosti. Celková suma na priamu poštu sa každý mesiac automaticky vypočíta na konci tabuľky a celkový ročný súčet v bunke Q30. Ďalší pokyn sa nachádza v bunke A31. | B25: Položky tabuľky Priama pošta | C25: Sadzba | D25: Mesiac 1 | E25: Mesiac 2 | F25: Mesiac 3 | G25: Mesiac 4 | H25: Mesiac 5 | I25: Mesiac 6 | J25: Mesiac 7 | K25: Mesiac 8 | L25: Mesiac 9 | M25: Mesiac 10 | N25: Mesiac 11 | O25: Mesiac 12
B26: Priama pošta (% z priameho predaja)
B27: Ľudské zdroje – náklady | Q27: =SUM('Rozpočet na kanálový marketing'!$D27:$O27) -> 0.00
B28: Materiál | D28: 1000 | E28: 1000 | F28: 1000 | G28: 1000 | H28: 1000 | I28: 1000 | J28: 1000 | K28: 1000 | L28: 1000 | M28: 1000 | N28: 1000 | O28: 1000 | Q28: =SUM('Rozpočet na kanálový marketing'!$D28:$O28) -> 12,000.00
B29: Poštovné | D29: 250 | E29: 250 | F29: 250 | G29: 250 | H29: 250 | I29: 250 | J29: 250 | K29: 250 | L29: 250 | M29: 250 | N29: 250 | O29: 250 | Q29: =SUM('Rozpočet na kanálový marketing'!$D29:$O29) -> 3,000.00
B30: Celková suma na priamu poštu (000) € | D30: =SUM(D27:D29) -> 1,250.00 | E30: =SUM(E27:E29) -> 1,250.00 | F30: 1,250.00 | G30: 1,250.00 | H30: 1,250.00 | I30: 1,250.00 | J30: 1,250.00 | K30: 1,250.00 | L30: 1,250.00 | M30: 1,250.00 | N30: 1,250.00 | O30: 1,250.00 | Q30: =SUM(Q27:Q29) -> 15,000.00
A31: V tomto riadku v bunkách D31 až O31 sa automaticky vypočíta súčet výdavkov na priamy marketing a v bunke Q31 ročný súčet. V bunke S31 sa automaticky aktualizuje krivka. | B31: Celková suma na priamy marketing (000) € | D31: =SUM(PriamaPošta[[#Totals],[Mesiac 1]],InternetovýMarketing[[#Totals],[Mesiac 1]],PriamyMarketing[[#Totals],[Mesiac 1]]) -> 1,839.00 | E31: =SUM(PriamaPošta[[#Totals],[Mesiac 2]],InternetovýMarketing[[#Totals],[Mesiac 2]],PriamyMarketing[[#Totals],[Mesiac 2]]) -> 1,281.85 | F31: =SUM(PriamaPošta[[#Totals],[Mesiac 3]],InternetovýMarketing[[#Totals],[Mesiac 3]],PriamyMarketing[[#Totals],[Mesiac 3]]) -> 1,311.94 | G31: =SUM(PriamaPošta[[#Totals],[Mesiac 4]],InternetovýMarketing[[#Totals],[Mesiac 4]],PriamyMarketing[[#Totals],[Mesiac 4]]) -> 1,282.05 | H31: =SUM(PriamaPošta[[#Totals],[Mesiac 5]],InternetovýMarketing[[#Totals],[Mesiac 5]],PriamyMarketing[[#Totals],[Mesiac 5]]) -> 1,311.95 | I31: =SUM(PriamaPošta[[#Totals],[Mesiac 6]],InternetovýMarketing[[#Totals],[Mesiac 6]],PriamyMarketing[[#Totals],[Mesiac 6]]) -> 1,281.94 | J31: =SUM(PriamaPošta[[#Totals],[Mesiac 7]],InternetovýMarketing[[#Totals],[Mesiac 7]],PriamyMarketing[[#Totals],[Mesiac 7]]) -> 1,311.90 | K31: =SUM(PriamaPošta[[#Totals],[Mesiac 8]],InternetovýMarketing[[#Totals],[Mesiac 8]],PriamyMarketing[[#Totals],[Mesiac 8]]) -> 1,281.84 | L31: =SUM(PriamaPošta[[#Totals],[Mesiac 9]],InternetovýMarketing[[#Totals],[Mesiac 9]],PriamyMarketing[[#Totals],[Mesiac 9]]) -> 1,311.80 | M31: =SUM(PriamaPošta[[#Totals],[Mesiac 10]],InternetovýMarketing[[#Totals],[Mesiac 10]],PriamyMarketing[[#Totals],[Mesiac 10]]) -> 1,281.80 | N31: =SUM(PriamaPošta[[#Totals],[Mesiac 11]],InternetovýMarketing[[#Totals],[Mesiac 11]],PriamyMarketing[[#Totals],[Mesiac 11]]) -> 1,336.80 | O31: =SUM(PriamaPošta[[#Totals],[Mesiac 12]],InternetovýMarketing[[#Totals],[Mesiac 12]],PriamyMarketing[[#Totals],[Mesiac 12]]) -> 1,281.80 | Q31: =SUM(Q30,Q24,Q17,Q9) -> 16,431.61
A32: Do tabuľky Agent a sprostredkovateľ začínajúcej v bunke napravo zadajte podrobnosti. Celková suma na agenta a sprostredkovateľa sa každý mesiac automaticky vypočíta na konci tabuľky a celkový ročný súčet v bunke Q39. V bunke S39 sa automaticky aktualizuje krivka. Ďalší pokyn sa nachádza v bunke A40. | B32: Položky tabuľky Agent a sprostredkovateľ | C32: Sadzba | D32: Mesiac 1 | E32: Mesiac 2 | F32: Mesiac 3 | G32: Mesiac 4 | H32: Mesiac 5 | I32: Mesiac 6 | J32: Mesiac 7 | K32: Mesiac 8 | L32: Mesiac 9 | M32: Mesiac 10 | N32: Mesiac 11 | O32: Mesiac 12
B33: AGENT/SPROSTREDKOVATEĽ (% Z CELKOVÉHO PREDAJA) | D33: 10% | E33: 10% | F33: 10% | G33: 10% | H33: 10% | I33: 10% | J33: 10% | K33: 10% | L33: 10% | M33: 10% | N33: 10% | O33: 10%
B34: Komunikácia | D34: 50 | E34: 50 | F34: 50 | G34: 50 | H34: 50 | I34: 50 | J34: 50 | K34: 50 | L34: 50 | M34: 50 | N34: 50 | O34: 50 | Q34: =SUM('Rozpočet na kanálový marketing'!$D34:$O34) -> 600.00
B35: Školenie | D35: 250.00 | E35: 250.00 | F35: 250.00 | G35: 250.00 | H35: 250.00 | I35: 250.00 | J35: 250.00 | K35: 250.00 | L35: 250.00 | M35: 250.00 | N35: 250.00 | O35: 250.00 | Q35: =SUM('Rozpočet na kanálový marketing'!$D35:$O35) -> 3,000.00
B36: Propagačné akcie | D36: 600.00 | E36: 600.00 | F36: 600.00 | G36: 600.00 | H36: 600.00 | I36: 600.00 | J36: 600.00 | K36: 600.00 | L36: 600.00 | M36: 600.00 | N36: 600.00 | O36: 600.00 | Q36: =SUM('Rozpočet na kanálový marketing'!$D36:$O36) -> 7,200.00
B37: Zľavy | C37: 10.00% | D37: =D3*D33*$C$37 -> 7.50 | E37: 2.00 | F37: 5.00 | G37: 15.00 | H37: 12.00 | I37: 15.00 | J37: 15.00 | K37: 18.00 | L37: 20.00 | M37: 20.00 | N37: 20.00 | O37: 20.00 | Q37: =SUM('Rozpočet na kanálový marketing'!$D37:$O37) -> 169.50
B38: Provízia (% z predaja agenta) | C38: 10.00% | D38: =D3*D33*$C$38 -> 7.50 | E38: 2.00 | F38: 5.00 | G38: 15.00 | H38: 12.00 | I38: 15.00 | J38: 15.00 | K38: 18.00 | L38: 20.00 | M38: 20.00 | N38: 20.00 | O38: 20.00 | Q38: =SUM('Rozpočet na kanálový marketing'!$D38:$O38) -> 169.50
B39: Celková suma na agenta/sprostredkovateľa (000) € | D39: =SUM(D34:D38) -> 915.00 | E39: =SUM(E34:E38) -> 904.00 | F39: 910.00 | G39: 930.00 | H39: 924.00 | I39: 930.00 | J39: 930.00 | K39: 936.00 | L39: 940.00 | M39: 940.00 | N39: 940.00 | O39: 940.00 | Q39: =SUM(Q34:Q38) -> 11,139.00
A40: Do tabuľky Distribútori začínajúcej v bunke napravo zadajte podrobnosti. Celková suma na distribútorov každý mesiac automaticky vypočíta na konci tabuľky a celkový ročný súčet v bunke Q46. V bunke S46 sa automaticky aktualizuje krivka. Ďalší pokyn sa nachádza v bunke A47. | B40: Položky tabuľky Distribútor | C40: Sadzba | D40: Mesiac 1 | E40: Mesiac 2 | F40: Mesiac 3 | G40: Mesiac 4 | H40: Mesiac 5 | I40: Mesiac 6 | J40: Mesiac 7 | K40: Mesiac 8 | L40: Mesiac 9 | M40: Mesiac 10 | N40: Mesiac 11 | O40: Mesiac 12
B41: DISTRIBÚTORI (% Z CELKOVÉHO PREDAJA) | D41: 0% | E41: 0% | F41: 0% | G41: 0% | H41: 0% | I41: 15% | J41: 20% | K41: 40% | L41: 40% | M41: 40% | N41: 40% | O41: 40%
B42: Komunikácia | D42: 50 | E42: 50 | F42: 50 | G42: 50 | H42: 50 | I42: 50 | J42: 50 | K42: 50 | L42: 50 | M42: 50 | N42: 50 | O42: 50 | Q42: =SUM('Rozpočet na kanálový marketing'!$D42:$O42) -> 600.00
B43: Školenie | D43: 250.00 | E43: 250.00 | F43: 250.00 | G43: 250.00 | H43: 250.00 | I43: 250.00 | J43: 250.00 | K43: 250.00 | L43: 250.00 | M43: 250.00 | N43: 250.00 | O43: 250.00 | Q43: =SUM(Distribútori[[#This Row],[Mesiac 1]:[Mesiac 12]]) -> 3,000.00
B44: Propagačné akcie | D44: 600.00 | E44: 600.00 | F44: 600.00 | G44: 600.00 | H44: 600.00 | I44: 600.00 | J44: 600.00 | K44: 600.00 | L44: 600.00 | M44: 600.00 | N44: 600.00 | O44: 600.00 | Q44: =SUM(Distribútori[[#This Row],[Mesiac 1]:[Mesiac 12]]) -> 7,200.00
B45: Provízia/zľavy (% z predaja distribútora) | C45: 15.00% | D45: =D3*D41*$C$45 -> 0 | E45: 0 | F45: 0 | G45: 0 | H45: 0 | I45: 33.75 | J45: 45 | K45: 108 | L45: 120 | M45: 120 | N45: 120 | O45: 120 | Q45: =SUM(Distribútori[[#This Row],[Mesiac 1]:[Mesiac 12]]) -> 666.75
B46: Celková suma na distribútorov (000) € | D46: =SUM(D42:D45) -> 900.00 | E46: =SUM(E42:E45) -> 900.00 | F46: 900.00 | G46: 900.00 | H46: 900.00 | I46: 933.75 | J46: 945.00 | K46: 1,008.00 | L46: 1,020.00 | M46: 1,020.00 | N46: 1,020.00 | O46: 1,020.00 | Q46: =SUM(Q42:Q45) -> 11,466.75
A47: Do tabuľky Maloobchodní predajcovia začínajúcej v bunke napravo zadajte podrobnosti. Celková suma na maloobchodných predajcov sa každý mesiac automaticky vypočíta na konci tabuľky a celkový ročný súčet v bunke Q53. V bunke S53 sa automaticky aktualizuje krivka. Ďalší pokyn sa nachádza v bunke A54. | B47: Položky tabuľky Maloobchodný predajca | C47: Sadzba | D47: Mesiac 1 | E47: Mesiac 2 | F47: Mesiac 3 | G47: Mesiac 4 | H47: Mesiac 5 | I47: Mesiac 6 | J47: Mesiac 7 | K47: Mesiac 8 | L47: Mesiac 9 | M47: Mesiac 10 | N47: Mesiac 11 | O47: Mesiac 12
B48: MALOOBCHODNÝ PREDAJCA (% Z CELKOVÉHO PREDAJA) | D48: 0% | E48: 0% | F48: 25% | G48: 60% | H48: 67% | I48: 60% | J48: 60% | K48: 50% | L48: 30% | M48: 30% | N48: 30% | O48: 30%
B49: Komunikácia | D49: 50 | E49: 50 | F49: 50 | G49: 50 | H49: 50 | I49: 50 | J49: 50 | K49: 50 | L49: 50 | M49: 50 | N49: 50 | O49: 50
B50: Školenie | D50: 250.00 | E50: 250.00 | F50: 250.00 | G50: 250.00 | H50: 250.00 | I50: 250.00 | J50: 250.00 | K50: 250.00 | L50: 250.00 | M50: 250.00 | N50: 250.00 | O50: 250.00 | Q50: =SUM('Rozpočet na kanálový marketing'!$D49:$O49) -> 600.00
B51: Propagačné akcie | D51: 600.00 | E51: 600.00 | F51: 600.00 | G51: 600.00 | H51: 600.00 | I51: 600.00 | J51: 600.00 | K51: 600.00 | L51: 600.00 | M51: 600.00 | N51: 600.00 | O51: 600.00 | Q51: =SUM('Rozpočet na kanálový marketing'!$D50:$O50) -> 3,000.00
B52: Provízia/zľavy (% z predaja maloobchodného predajcu) | C52: 10.00% | D52: =D3*D48*$C$52 -> 0 | E52: 0 | F52: 12.5 | G52: 90 | H52: 80.4 | I52: 90 | J52: 90 | K52: 90 | L52: 60 | M52: 60 | N52: 60 | O52: 60 | Q52: =SUM('Rozpočet na kanálový marketing'!$D52:$O52) -> 692.90
B53: Celková suma na maloobchodných predajcov (000) € | D53: =SUM(D49:D52) -> 900.00 | E53: =SUM(E49:E52) -> 900.00 | F53: 912.50 | G53: 990.00 | H53: 980.40 | I53: 990.00 | J53: 990.00 | K53: 990.00 | L53: 960.00 | M53: 960.00 | N53: 960.00 | O53: 960.00 | Q53: =SUM(Q50:Q52) -> 4,292.90
A54: Do tabuľky Získanie a udržanie zákazníkov začínajúcej v bunke napravo zadajte podrobnosti. Celková suma na získanie a udržanie zákazníkov sa každý mesiac automaticky vypočíta na konci tabuľky a celkový ročný súčet v bunke Q59. V bunke S59 sa automaticky aktualizuje krivka. Ďalší pokyn sa nachádza v bunke A60. | B54: Položky tabuľky Získanie a udržanie zákazníkov | C54: Sadzba | D54: Mesiac 1 | E54: Mesiac 2 | F54: Mesiac 3 | G54: Mesiac 4 | H54: Mesiac 5 | I54: Mesiac 6 | J54: Mesiac 7 | K54: Mesiac 8 | L54: Mesiac 9 | M54: Mesiac 10 | N54: Mesiac 11 | O54: Mesiac 12
B55: ZÍSKANIE A UDRŽANIE ZÁKAZNÍKOV
B56: Ľudské zdroje | D56: 50 | E56: 50 | F56: 50 | G56: 50 | H56: 50 | I56: 50 | J56: 50 | K56: 50 | L56: 50 | M56: 50 | N56: 50 | O56: 50 | Q56: =SUM('Rozpočet na kanálový marketing'!$D56:$O56) -> 600.00
B57: Komunikácia | D57: 250.00 | E57: 250.00 | F57: 250.00 | G57: 250.00 | H57: 250.00 | I57: 250.00 | J57: 250.00 | K57: 250.00 | L57: 250.00 | M57: 250.00 | N57: 250.00 | O57: 250.00 | Q57: =SUM('Rozpočet na kanálový marketing'!$D57:$O57) -> 3,000.00
B58: Propagačné akcie/kupóny | D58: 600 | E58: 600 | F58: 600 | G58: 600 | H58: 600 | I58: 600 | J58: 600 | K58: 600 | L58: 600 | M58: 600 | N58: 600 | O58: 600 | Q58: =SUM('Rozpočet na kanálový marketing'!$D58:$O58) -> 7,200.00
B59: Celková suma na získanie a udržanie zákazníkov (000) € | D59: =SUM(D56:D58) -> 900.00 | E59: =SUM(E56:E58) -> 900.00 | F59: 900.00 | G59: 900.00 | H59: 900.00 | I59: 900.00 | J59: 900.00 | K59: 900.00 | L59: 900.00 | M59: 900.00 | N59: 900.00 | O59: 900.00 | Q59: =SUM(Q56:Q58) -> 10,800.00
A60: Do tabuľky Ďalšie výdavky začínajúcej v bunke napravo zadajte podrobnosti. Celková suma na ďalšie výdavky sa každý mesiac automaticky vypočíta na konci tabuľky a celkový ročný súčet v bunke Q65. V bunke S65 sa automaticky aktualizuje krivka. Ďalší pokyn sa nachádza v bunke A67. | B60: Položky tabuľky Ďalšie výdavky | C60: Sadzba | D60: Mesiac 1 | E60: Mesiac 2 | F60: Mesiac 3 | G60: Mesiac 4 | H60: Mesiac 5 | I60: Mesiac 6 | J60: Mesiac 7 | K60: Mesiac 8 | L60: Mesiac 9 | M60: Mesiac 10 | N60: Mesiac 11 | O60: Mesiac 12
B61: ĎALŠIE VÝDAVKY
B62: Cestovanie | D62: 50 | E62: 50 | F62: 50 | G62: 50 | H62: 50 | I62: 50 | J62: 50 | K62: 50 | L62: 50 | M62: 50 | N62: 50 | O62: 50 | Q62: =SUM('Rozpočet na kanálový marketing'!$D62:$O62) -> 600.00
B63: Infraštruktúra (počítač, telefón atď.) | D63: 250.00 | E63: 250.00 | F63: 250.00 | G63: 250.00 | H63: 250.00 | I63: 250.00 | J63: 250.00 | K63: 250.00 | L63: 250.00 | M63: 250.00 | N63: 250.00 | O63: 250.00 | Q63: =SUM('Rozpočet na kanálový marketing'!$D63:$O63) -> 3,000.00
B64: Podpora kanála | D64: 600 | E64: 600 | F64: 600 | G64: 600 | H64: 600 | I64: 600 | J64: 600 | K64: 600 | L64: 600 | M64: 600 | N64: 600 | O64: 600 | Q64: =SUM('Rozpočet na kanálový marketing'!$D64:$O64) -> 7,200.00
B65: Celková suma na ďalšie výdavky (000) € | D65: =SUM(D62:D64) -> 900.00 | E65: =SUM(E62:E64) -> 900.00 | F65: 900.00 | G65: 900.00 | H65: 900.00 | I65: 900.00 | J65: 900.00 | K65: 900.00 | L65: 900.00 | M65: 900.00 | N65: 900.00 | O65: 900.00 | Q65: =SUM(Q62:Q64) -> 10,800.00
A67: V tomto riadku v bunkách D67 až O67 sa automaticky vypočíta celkový rozpočet na marketing na jednotlivé mesiace a v bunke Q67 celkový ročný súčet. V bunke S67 sa automaticky aktualizuje krivka. | B67: CELKOVÝ ROZPOČET NA MARKETING: | D67: =SUM(ĎalšieVýdavky[[#Totals],[Mesiac 1]],ZískanieAUdržanieZákazníkov[[#Totals],[Mesiac 1]],MaloobchodnýPredajca[[#Totals],[Mesiac 1]],Distribútori[[#Totals],[Mesiac 1]],AgentASprostredkovateľ[[#Totals],[Mesiac 1]],D31) -> 6,354.00 | E67: =SUM(ĎalšieVýdavky[[#Totals],[Mesiac 2]],ZískanieAUdržanieZákazníkov[[#Totals],[Mesiac 2]],MaloobchodnýPredajca[[#Totals],[Mesiac 2]],Distribútori[[#Totals],[Mesiac 2]],AgentASprostredkovateľ[[#Totals],[Mesiac 2]],E31) -> 5,785.85 | F67: =SUM(ĎalšieVýdavky[[#Totals],[Mesiac 3]],ZískanieAUdržanieZákazníkov[[#Totals],[Mesiac 3]],MaloobchodnýPredajca[[#Totals],[Mesiac 3]],Distribútori[[#Totals],[Mesiac 3]],AgentASprostredkovateľ[[#Totals],[Mesiac 3]],F31) -> 5,834.44 | G67: =SUM(ĎalšieVýdavky[[#Totals],[Mesiac 4]],ZískanieAUdržanieZákazníkov[[#Totals],[Mesiac 4]],MaloobchodnýPredajca[[#Totals],[Mesiac 4]],Distribútori[[#Totals],[Mesiac 4]],AgentASprostredkovateľ[[#Totals],[Mesiac 4]],G31) -> 5,902.05 | H67: =SUM(ĎalšieVýdavky[[#Totals],[Mesiac 5]],ZískanieAUdržanieZákazníkov[[#Totals],[Mesiac 5]],MaloobchodnýPredajca[[#Totals],[Mesiac 5]],Distribútori[[#Totals],[Mesiac 5]],AgentASprostredkovateľ[[#Totals],[Mesiac 5]],H31) -> 5,916.35 | I67: =SUM(ĎalšieVýdavky[[#Totals],[Mesiac 6]],ZískanieAUdržanieZákazníkov[[#Totals],[Mesiac 6]],MaloobchodnýPredajca[[#Totals],[Mesiac 6]],Distribútori[[#Totals],[Mesiac 6]],AgentASprostredkovateľ[[#Totals],[Mesiac 6]],I31) -> 5,935.69 | J67: =SUM(ĎalšieVýdavky[[#Totals],[Mesiac 7]],ZískanieAUdržanieZákazníkov[[#Totals],[Mesiac 7]],MaloobchodnýPredajca[[#Totals],[Mesiac 7]],Distribútori[[#Totals],[Mesiac 7]],AgentASprostredkovateľ[[#Totals],[Mesiac 7]],J31) -> 5,976.90 | K67: =SUM(ĎalšieVýdavky[[#Totals],[Mesiac 8]],ZískanieAUdržanieZákazníkov[[#Totals],[Mesiac 8]],MaloobchodnýPredajca[[#Totals],[Mesiac 8]],Distribútori[[#Totals],[Mesiac 8]],AgentASprostredkovateľ[[#Totals],[Mesiac 8]],K31) -> 6,015.84 | L67: =SUM(ĎalšieVýdavky[[#Totals],[Mesiac 9]],ZískanieAUdržanieZákazníkov[[#Totals],[Mesiac 9]],MaloobchodnýPredajca[[#Totals],[Mesiac 9]],Distribútori[[#Totals],[Mesiac 9]],AgentASprostredkovateľ[[#Totals],[Mesiac 9]],L31) -> 6,031.80 | M67: =SUM(ĎalšieVýdavky[[#Totals],[Mesiac 10]],ZískanieAUdržanieZákazníkov[[#Totals],[Mesiac 10]],MaloobchodnýPredajca[[#Totals],[Mesiac 10]],Distribútori[[#Totals],[Mesiac 10]],AgentASprostredkovateľ[[#Totals],[Mesiac 10]],M31) -> 6,001.80 | N67: =SUM(ĎalšieVýdavky[[#Totals],[Mesiac 11]],ZískanieAUdržanieZákazníkov[[#Totals],[Mesiac 11]],MaloobchodnýPredajca[[#Totals],[Mesiac 11]],Distribútori[[#Totals],[Mesiac 11]],AgentASprostredkovateľ[[#Totals],[Mesiac 11]],N31) -> 6,056.80 | O67: =SUM(ĎalšieVýdavky[[#Totals],[Mesiac 12]],ZískanieAUdržanieZákazníkov[[#Totals],[Mesiac 12]],MaloobchodnýPredajca[[#Totals],[Mesiac 12]],Distribútori[[#Totals],[Mesiac 12]],AgentASprostredkovateľ[[#Totals],[Mesiac 12]],O31) -> 6,001.80 | Q67: =SUM(D67:O67) -> 71,813.31
